fUSD/lending_fUSD_20240514
["ID","MTS","AMOUNT","RATE_DAILY","PERIOD"]
[326988358,1715687440030,-500.0,0.00012999,2]
[326988359,1715687440040,-500.0,0.00012999,2]
[326988360,1715687440051,-500.0,0.00012999,2]
[326988361,1715687440060,-500.0,0.00012999,2]
[326988362,1715687440070,-500.0,0.00012999,2]
[326988363,1715687440079,-500.0,0.00012999,2]
[326988364,1715687440089,-500.0,0.00012999,2]
[326988365,1715687440099,-500.0,0.00012999,2]
[326988366,1715687440108,-500.0,0.00012999,2]
[326988367,1715687440118,-500.0,0.00012999,2]
[326988368,1715687440127,-500.0,0.00012999,2]
[326988369,1715687440137,-500.0,0.00012999,2]
[326988371,1715687440146,-500.0,0.00012999,2]
[326988373,1715687440155,-500.0,0.00012999,2]
[326988374,1715687440164,-500.0,0.00012999,2]
[326988375,1715687440174,-500.0,0.00012999,2]
[326988376,1715687440184,-500.0,0.00012999,2]
[326988377,1715687440193,-543.73768082,0.00012999,2]
[326988379,1715687440202,-500.0,0.00012999,2]
[326988380,1715687440211,-384.42,0.00012999,2]
[326988382,1715687440221,-500.0,0.00012999,2]
[326988384,1715687440230,-500.0,0.00012999,2]
[326988385,1715687440239,-500.0,0.00012999,2]
[326988386,1715687440249,-213.84,0.00012999,2]
[326988387,1715687440263,-1290.95,0.00012999,2]
[326988388,1715687440273,-1290.95,0.00012999,2]
[326988389,1715687440282,-1290.95,0.00012999,2]
[326988390,1715687440291,-1290.95,0.00012999,2]
[326988391,1715687440301,-1290.95,0.00012999,2]
[326988392,1715687440311,-1290.95,0.00012999,2]
[326988393,1715687440512,-1290.95,0.00012999,2]
[326988394,1715687440523,-1290.95,0.00012999,2]
[326988395,1715687440533,-1290.95,0.00012999,2]
[326988396,1715687440543,-1290.95,0.00012999,2]
[326988397,1715687440553,-1290.95,0.00012999,2]
[326988398,1715687440562,-1290.95,0.00012999,2]
[326988399,1715687440572,-1290.95,0.00012999,2]
[326988400,1715687440582,-1290.95,0.00012999,2]
[326988401,1715687440592,-1290.95,0.00012999,2]
[326988402,1715687440602,-1290.95,0.00012999,2]
[326988403,1715687440612,-1290.95,0.00012999,2]
[326988404,1715687440622,-1290.95,0.00012999,2]
[326988405,1715687440632,-1290.95,0.00012999,2]
[326988406,1715687440642,-1290.95,0.00012999,2]
[326988407,1715687440652,-1290.95,0.00012999,2]
[326988408,1715687440662,-1291.13501844,0.00012999,2]
[326988409,1715687440673,-500.0,0.00012999,2]
[326988410,1715687440683,-500.0,0.00012999,2]
[326988411,1715687440692,-324.37,0.00012999,2]
[326988412,1715687440702,-500.0,0.00012999,2]
[326988413,1715687440712,-500.0,0.00012999,2]
[326988414,1715687440722,-500.0,0.00012999,2]
[326988415,1715687440732,-349.55,0.00012999,2]
[326988416,1715687440741,-500.0,0.00012999,2]
[326988417,1715687440750,-500.0,0.00012999,2]
[326988418,1715687440760,-591.1,0.00012999,2]
[326988419,1715687440769,-513.91,0.00012999,2]
[326988420,1715687440779,-500.0,0.00012999,2]
[326988421,1715687440789,-500.0,0.00012999,2]
[326988422,1715687440799,-500.0,0.00012999,2]
[326988423,1715687440808,-500.0,0.00012999,2]
[326988424,1715687440818,-500.0,0.00012999,2]
[326988425,1715687440827,-500.0,0.00012999,2]
[326988426,1715687440837,-500.0,0.00012999,2]
[326988427,1715687440847,-500.0,0.00012999,2]
[326988428,1715687440858,-500.0,0.00012999,2]
[326988429,1715687440868,-249.41,0.00012999,2]
[326988430,1715687440877,-500.0,0.00012999,2]
[326988431,1715687440887,-458.83471237,0.00012999,2]
[326988432,1715687440896,-500.0,0.00012999,2]
[326988433,1715687440906,-500.0,0.00012999,2]
[326988434,1715687440915,-500.0,0.00012999,2]
[326988435,1715687440925,-500.0,0.00012999,2]
[326988436,1715687440934,-500.0,0.00012999,2]
[326988437,1715687440943,-500.0,0.00012999,2]
[326988438,1715687440952,-500.0,0.00012999,2]
[326988439,1715687440962,-500.0,0.00012999,2]
[326988440,1715687440971,-500.0,0.00012999,2]
[326988441,1715687440981,-500.0,0.00012999,2]
[326988442,1715687440990,-500.0,0.00012999,2]
[326988443,1715687441000,-230.1,0.00012999,2]
[326988444,1715687441010,-533.28,0.00012999,2]
[326988445,1715687441020,-533.28,0.00012999,2]
[326988446,1715687441029,-533.28,0.00012999,2]
[326988447,1715687441039,-533.28,0.00012999,2]
[326988448,1715687441049,-533.28,0.00012999,2]
[326988449,1715687441058,-533.28,0.00012999,2]
[326988450,1715687441068,-533.28,0.00012999,2]
[326988451,1715687441077,-500.0,0.00012999,2]
[326988452,1715687441086,-533.28,0.00012999,2]
[326988453,1715687441095,-500.0,0.00012999,2]
[326988454,1715687441104,-533.28,0.00012999,2]
[326988455,1715687441113,-500.0,0.00012999,2]
[326988456,1715687441123,-533.28,0.00012999,2]
[326988457,1715687441132,-488.06,0.00012999,2]
[326988458,1715687441142,-533.28,0.00012999,2]
[326988459,1715687441151,-533.28,0.00012999,2]
[326988460,1715687441161,-533.28,0.00012999,2]
[326988461,1715687441170,-533.28,0.00012999,2]
[326988462,1715687441180,-533.28,0.00012999,2]
[326988463,1715687441189,-533.28,0.00012999,2]
[326988464,1715687441198,-533.28,0.00012999,2]
[326988465,1715687441207,-533.28,0.00012999,2]
[326988466,1715687441217,-533.28,0.00012999,2]
[326988467,1715687441226,-533.28,0.00012999,2]
[326988468,1715687441236,-533.28,0.00012999,2]
[326988469,1715687441246,-533.28,0.00012999,2]
[326988470,1715687441260,-533.46606596,0.00012999,2]
[326988471,1715687441269,-500.0,0.00012999,2]
[326988472,1715687441278,-342.33,0.00012999,2]
[326988473,1715687441286,-607.55,0.00012999,2]
[326988474,1715687441295,-607.55,0.00012999,2]
[326988475,1715687441303,-607.55,0.00012999,2]
[326988476,1715687441311,-607.55,0.00012999,2]
[326988477,1715687441319,-607.55,0.00012999,2]
[326988478,1715687441328,-607.55,0.00012999,2]
[326988479,1715687441340,-607.55,0.00012999,2]
[326988480,1715687441350,-607.55,0.00012999,2]
[326988481,1715687441360,-607.55,0.00012999,2]
[326988482,1715687441369,-607.55,0.00012999,2]
[326988483,1715687441378,-607.55,0.00012999,2]
[326988484,1715687441387,-607.55,0.00012999,2]
[326988485,1715687441396,-607.55,0.00012999,2]
[326988486,1715687441406,-607.55,0.00012999,2]
[326988487,1715687441415,-607.55,0.00012999,2]
[326988488,1715687441425,-500.0,0.00012999,2]
[326988489,1715687441435,-607.55,0.00012999,2]
[326988490,1715687441444,-500.0,0.00012999,2]
[326988491,1715687441454,-607.55,0.00012999,2]
[326988492,1715687441464,-500.0,0.00012999,2]
[326988493,1715687441473,-500.0,0.00012999,2]
[326988494,1715687441482,-607.55,0.00012999,2]
[326988495,1715687441491,-500.0,0.00012999,2]
[326988496,1715687441500,-607.55,0.00012999,2]
[326988497,1715687441510,-500.0,0.00012999,2]
[326988498,1715687441520,-607.55,0.00012999,2]
[326988499,1715687441529,-500.0,0.00012999,2]
[326988500,1715687441539,-607.55,0.00012999,2]
[326988501,1715687441549,-607.75,0.00012999,2]
[326988502,1715687441558,-500.0,0.00012999,2]
[326988503,1715687441567,-500.0,0.00012999,2]
[326988504,1715687441576,-500.0,0.00012999,2]
[326988505,1715687441586,-500.0,0.00012999,2]
[326988506,1715687441595,-500.0,0.00012999,2]
[326988507,1715687441605,-601.05,0.00012999,2]
[326988508,1715687441615,-500.0,0.00012999,2]
[326988509,1715687441625,-500.0,0.00012999,2]
[326988510,1715687441634,-500.0,0.00012999,2]
[326988511,1715687441644,-500.0,0.00012999,2]
[326988512,1715687441654,-500.0,0.00012999,2]
[326988513,1715687441663,-500.0,0.00012999,2]
[326988514,1715687441674,-500.0,0.00012999,2]
[326988515,1715687441686,-500.0,0.00012999,2]
[326988516,1715687441696,-500.0,0.00012999,2]
[326988517,1715687441705,-500.0,0.00012999,2]
[326988518,1715687441715,-500.0,0.00012999,2]
[326988519,1715687441725,-522.0,0.00012999,2]
[326988520,1715687441734,-500.0,0.00012999,2]
[326988521,1715687441743,-500.0,0.00012999,2]
[326988522,1715687441753,-187.16,0.00012999,2]
[326988523,1715687441764,-500.0,0.00012999,2]
[326988524,1715687441774,-500.0,0.00012999,2]
[326988525,1715687441783,-500.0,0.00012999,2]
[326988526,1715687441793,-500.0,0.00012999,2]
[326988527,1715687441803,-500.0,0.00012999,2]
[326988528,1715687441812,-592.6,0.00012999,2]
[326988529,1715687441821,-500.0,0.00012999,2]
[326988530,1715687441831,-500.0,0.00012999,2]
[326988531,1715687441840,-500.0,0.00012999,2]
[326988532,1715687441850,-500.0,0.00012999,2]
[326988533,1715687441859,-500.0,0.00012999,2]
[326988534,1715687441869,-500.0,0.00012999,2]
[326988535,1715687441878,-500.0,0.00012999,2]
[326988536,1715687441888,-500.0,0.00012999,2]
[326988537,1715687441898,-593.72715176,0.00012999,2]
[326988538,1715687441908,-500.0,0.00012999,2]
[326988539,1715687441917,-500.0,0.00012999,2]
[326988540,1715687441928,-500.0,0.00012999,2]
[326988541,1715687441938,-624.23326496,0.00012999,2]
[326988542,1715687441947,-500.0,0.00012999,2]
[326988543,1715687441957,-500.0,0.00012999,2]
[326988544,1715687441967,-500.0,0.00012999,2]
[326988545,1715687441977,-5042.5046616,0.00012999,2]
[326988546,1715687441987,-5000.0,0.00012999,2]
[326988547,1715687441996,-5000.0,0.00012999,2]
[326988548,1715687442005,-5000.0,0.00012999,2]
[326988549,1715687442015,-5000.0,0.00012999,2]
[326988550,1715687442024,-34809.2800138,0.00013,2]
[326988589,1715687442782,-105312.60001817,0.00013,2]
[326988591,1715687442793,-84848.54442416,0.00013,2]
[326988629,1715687443831,-376.69655341,9e-05,2]
[326988630,1715687443855,-279.03229306,9e-05,2]
[326988631,1715687443864,-400.0,0.00011474,2]
[326988632,1715687443874,-400.0,0.00012908,2]
[326988633,1715687443883,-394.33070121,0.00012999,2]
[326988634,1715687443894,-105.66929879,0.00012999,2]
[326988635,1715687443903,-239.20690742,0.00012999,2]
[326988636,1715687443915,-260.79309258,0.00012999,2]
[326988637,1715687443926,-500.0,0.00012999,2]
[326988638,1715687443935,-500.0,0.00012999,2]
[326988639,1715687443944,-500.0,0.00012999,2]
[326988640,1715687443952,-500.0,0.00012999,2]
[326988641,1715687443962,-500.0,0.00012999,2]
[326988642,1715687443971,-500.0,0.00012999,2]
[326988643,1715687443979,-500.0,0.00012999,2]
[326988644,1715687443989,-500.0,0.00012999,2]
[326988645,1715687443997,-294.82,0.00012999,2]
[326988646,1715687444007,-1625.39611124,0.00013,2]
[326988648,1715687445622,-1619.98735026,0.00013,2]
[326988649,1715687445634,-886.59710812,0.00013,2]
[326988650,1715687445645,-1210.60516628,0.00013,2]
[326988651,1715687445660,-712.36295598,0.00013,2]
[326988652,1715687445708,-462.1772013,0.00013,2]
[326988653,1715687445719,-999.02301719,0.00013,2]
[326988654,1715687445773,-431.96925012,0.00013,2]
[326988655,1715687445785,-14550.69374308,0.00013,2]
[326988656,1715687445797,-439.5127486,0.00013,2]
[326988657,1715687445846,-463.26284,0.00013,2]
[326988658,1715687445912,-306.8462,0.00013,2]
[326988659,1715687445977,-16227.4716,0.00013,2]
[326988660,1715687445992,-982.45050727,0.00013,2]
[326988662,1715687511762,1000.0,0.0003,120]
[326988663,1715687572540,2000.0,0.0003,120]
[326988666,1715688566363,1000.0,0.0003,120]
[326988681,1715688631849,-155.0,8.647e-05,2]
[326988682,1715688631859,-237.16022138,8.648e-05,2]
[326988683,1715688631869,-361.50299365,8.648e-05,2]
[326988684,1715688631881,-2555.01470596,8.648e-05,2]
[326988685,1715688631890,-239.38744252,8.649e-05,2]
[326988686,1715688631900,-1536.26,8.649e-05,2]
[326988687,1715688631909,-882.90837981,8.65e-05,2]
[326988688,1715688631919,-2916.51769961,8.65e-05,2]
[326988689,1715688631928,-782.26025222,8.651e-05,2]
[326988690,1715688631938,-4594.27005244,8.653e-05,2]
[326988691,1715688631947,-150.0,8.7e-05,2]
[326988692,1715688631957,-350.93755635,8.963e-05,2]
[326988693,1715688631967,-210.0,9.571e-05,2]
[326988694,1715688631977,-150.99,9.678e-05,2]
[326988695,1715688631986,-499.99,9.678e-05,2]
[326988696,1715688631995,-902.5,0.00010411,2]
[326988697,1715688632005,-708.39,0.00010411,2]
[326988698,1715688632014,-240.0,0.00010783,2]
[326988699,1715688632025,-289.59,0.00010839,2]
[326988700,1715688632034,-1136.33,0.00010974,2]
[326988701,1715688632043,-968.41,0.00010976,2]
[326988702,1715688632053,-10816.21,0.00010988,2]
[326988703,1715688632063,-996.88,0.00011021,2]
[326988704,1715688632073,-1500.0,0.00011033,2]
[326988705,1715688632082,-250.0,0.00011033,2]
[326988706,1715688632092,-250.0,0.00011058,2]
[326988707,1715688632101,-150.0,0.00011062,2]
[326988708,1715688632111,-2854.68,0.00011062,2]
[326988709,1715688632121,-200.0,0.00011122,2]
[326988710,1715688632130,-732.42,0.00011151,2]
[326988711,1715688632140,-760.0,0.00011173,2]
[326988712,1715688632150,-165.44,0.00011226,2]
[326988713,1715688632161,-709.19,0.00011243,2]
[326988714,1715688632171,-173.07,0.00011252,2]
[326988715,1715688632180,-400.0,0.000119,4]
[326988716,1715688632190,-800.0,0.00012,4]
[326988717,1715688632200,-151.8,0.00012034,2]
[326988718,1715688632209,-151.8,0.00012039,2]
[326988719,1715688632221,-151.8,0.00012043,2]
[326988720,1715688632235,-151.8,0.00012048,2]
[326988721,1715688632244,-151.8,0.00012053,2]
[326988722,1715688632255,-151.8,0.00012057,2]
[326988724,1715688632265,-151.8,0.00012062,2]
[326988726,1715688632294,-151.8,0.00012066,2]
[326988728,1715688632304,-151.8,0.00012071,2]
[326988730,1715688632314,-151.8,0.00012076,2]
[326988732,1715688632325,-151.8,0.0001208,2]
[326988734,1715688632334,-151.8,0.00012085,2]
[326988736,1715688632345,-151.8,0.0001209,2]
[326988737,1715688632356,-151.8,0.00012094,2]
[326988738,1715688632366,-1300.0,0.000121,4]
[326988739,1715688632375,-240.0,0.00012131,2]
[326988740,1715688632385,-1700.0,0.000122,4]
[326988741,1715688632395,-2200.0,0.000123,4]
[326988742,1715688632405,-400.0,0.000124,4]
[326988743,1715688632414,-400.0,0.000125,4]
[326988744,1715688632424,-760.0,0.00012569,2]
[326988745,1715688632434,-400.0,0.000126,4]
[326988746,1715688632443,-400.0,0.000127,4]
[326988747,1715688632453,-1563.60941232,0.00012731,2]
[326988748,1715688632463,-12647.87132177,0.0001275,2]
[326988749,1715688632476,-800.0,0.00012767,2]
[326988750,1715688632486,-659.5783,0.00012799,2]
[326988751,1715688632495,-800.0,0.000128,4]
[326988752,1715688632505,-1000.0,0.000128,2]
[326988753,1715688632515,-974.788,0.000128,2]
[326988754,1715688632525,-800.0,0.00012849,2]
[326988755,1715688632535,-800.0,0.00012849,2]
[326988756,1715688632544,-800.0,0.00012849,2]
[326988757,1715688632554,-800.0,0.00012849,2]
[326988758,1715688632564,-310.34432872,0.00012876,2]
[326988759,1715688632573,-500.0,0.00012876,2]
[326988760,1715688632583,-500.0,0.00012876,2]
[326988761,1715688632592,-851.74,0.00012876,2]
[326988762,1715688632602,-500.0,0.00012876,2]
[326988763,1715688632613,-500.0,0.00012876,2]
[326988764,1715688632624,-330.90564353,0.00012898,2]
[326988765,1715688632634,-4860.8733,0.00012898,2]
[326988766,1715688632644,-330.90564352,0.00012899,2]
[326988767,1715688632655,-1000.0,0.00012899,2]
[326988768,1715688632665,-5952.1729,0.00012899,2]
[326988769,1715688632675,-100000.0,0.00012899,2]
[326988770,1715688632685,-8525.4206,0.00012899,2]
[326988771,1715688632696,-169.7463935,0.00012899,2]
[326988772,1715688632706,-330.90564352,0.00012899,2]
[326988773,1715688632716,-330.90564352,0.000129,2]
[326988774,1715688632727,-4241.2065,0.000129,2]
[326988775,1715688632737,-170.97519332,0.000129,2]
[326988776,1715688632747,-23654.3146866,0.000129,2]
[326988777,1715688632756,-395.1200835,0.000129,2]
[326988778,1715688632766,-1000.0,0.000129,2]
[326988779,1715688632775,-330.90564352,0.000129,2]
[326988780,1715688632784,-416.7036176,0.000129,2]
[326988781,1715688632794,-800.0,0.00012959,2]
[326988782,1715688632804,-800.0,0.00012959,2]
[326988783,1715688632814,-800.0,0.00012986,2]
[326988784,1715688632824,-166.2,0.00012987,2]
[326988785,1715688632834,-150.0,0.00012987,2]
[326988786,1715688632843,-2238.55176646,0.0001299,2]
[326988787,1715688632853,-427.79115464,0.00012992,2]
[326988788,1715688632863,-500.0,0.00012995,2]
[326988789,1715688632873,-500.0,0.00012995,2]
[326988790,1715688632882,-504.49567731,0.00012995,2]
[326988791,1715688632892,-500.0,0.00012995,2]
[326988792,1715688632902,-500.0,0.00012995,2]
[326988793,1715688632912,-500.0,0.00012995,2]
[326988794,1715688632921,-500.0,0.00012995,2]
[326988795,1715688632930,-500.0,0.00012995,2]
[326988796,1715688632939,-500.0,0.00012995,2]
[326988797,1715688632949,-500.0,0.00012995,2]
[326988798,1715688632959,-500.0,0.00012995,2]
[326988799,1715688632969,-500.0,0.00012995,2]
[326988800,1715688632978,-500.0,0.00012995,2]
[326988801,1715688632988,-500.0,0.00012995,2]
[326988802,1715688632997,-500.0,0.00012995,2]
[326988803,1715688633006,-500.0,0.00012995,2]
[326988804,1715688633016,-500.0,0.00012995,2]
[326988805,1715688633026,-500.0,0.00012995,2]
[326988806,1715688633036,-586.24,0.00012995,2]
[326988807,1715688633046,-500.0,0.00012995,2]
[326988808,1715688633055,-559.68,0.00012995,2]
[326988809,1715688633065,-500.0,0.00012995,2]
[326988810,1715688633075,-500.0,0.00012995,2]
[326988811,1715688633085,-500.0,0.00012996,2]
[326988812,1715688633094,-500.0,0.00012996,2]
[326988813,1715688633104,-500.0,0.00012996,2]
[326988814,1715688633113,-663.22,0.00012996,2]
[326988815,1715688633122,-500.0,0.00012996,2]
[326988816,1715688633132,-500.0,0.00012996,2]
[326988817,1715688633141,-500.0,0.00012996,2]
[326988818,1715688633152,-901.16,0.00012996,2]
[326988819,1715688633162,-500.0,0.00012996,2]
[326988820,1715688633171,-500.0,0.00012996,2]
[326988821,1715688633181,-524.7,0.00012996,2]
[326988822,1715688633190,-500.0,0.00012996,2]
[326988823,1715688633199,-500.0,0.00012996,2]
[326988824,1715688633209,-500.0,0.00012996,2]
[326988825,1715688633219,-500.0,0.00012996,2]
[326988826,1715688633228,-500.0,0.00012996,2]
[326988827,1715688633237,-500.0,0.00012997,2]
[326988828,1715688633246,-608.28920078,0.00012997,2]
[326988829,1715688633256,-500.0,0.00012997,2]
[326988830,1715688633265,-500.0,0.00012997,2]
[326988831,1715688633274,-500.0,0.00012997,2]
[326988832,1715688633284,-500.0,0.00012997,2]
[326988833,1715688633293,-504.86551836,0.00012997,2]
[326988834,1715688633303,-500.0,0.00012997,2]
[326988835,1715688633312,-500.0,0.00012997,2]
[326988836,1715688633322,-500.82280582,0.00012997,2]
[326988837,1715688633332,-500.0,0.00012997,2]
[326988838,1715688633342,-500.0,0.00012997,2]
[326988839,1715688633351,-500.0,0.00012997,2]
[326988840,1715688633361,-500.0,0.00012997,2]
[326988841,1715688633371,-360.1368061,0.00012997,2]
[326988842,1715688633380,-502.25480687,0.00012997,2]
[326988843,1715688633391,-402.78359363,0.00012997,2]
[326988844,1715688633400,-506.98219957,0.00012997,2]
[326988845,1715688633410,-500.0,0.00012997,2]
[326988846,1715688633420,-500.0,0.00012997,2]
[326988847,1715688633431,-504.11491756,0.00012997,2]
[326988848,1715688633441,-503.39260864,0.00012997,2]
[326988849,1715688633451,-506.52850457,0.00012997,2]
[326988850,1715688633460,-503.66447212,0.00012997,2]
[326988851,1715688633471,-502.0927246,0.00012997,2]
[326988852,1715688633480,-500.0,0.00012997,2]
[326988853,1715688633490,-506.86904021,0.00012997,2]
[326988854,1715688633499,-528.45,0.00012997,2]
[326988855,1715688633509,-506.82654894,0.00012997,2]
[326988856,1715688633518,-526.01508442,0.00012997,2]
[326988857,1715688633528,-500.0,0.00012997,2]
[326988858,1715688633538,-500.0,0.00012997,2]
[326988859,1715688633547,-500.0,0.00012997,2]
[326988860,1715688633558,-500.0,0.00012997,2]
[326988861,1715688633568,-518.90004563,0.00012997,2]
[326988862,1715688633577,-503.77745678,0.00012997,2]
[326988863,1715688633587,-504.92890801,0.00012997,2]
[326988864,1715688633596,-500.0,0.00012997,2]
[326988865,1715688633610,-430.85249819,0.00012997,2]
[326988866,1715688633620,-500.0,0.00012997,2]
[326988867,1715688633629,-599.26,0.00012997,2]
[326988868,1715688633639,-500.0,0.00012997,2]
[326988869,1715688633650,-537.32378728,0.00012997,2]
[326988870,1715688633659,-500.0,0.00012997,2]
[326988871,1715688633668,-504.45515955,0.00012997,2]
[326988872,1715688633678,-503.72555911,0.00012997,2]
[326988873,1715688633690,-505.6664505,0.00012997,2]
[326988874,1715688633700,-641.37620062,0.00012997,2]
[326988875,1715688633710,-500.0,0.00012997,2]
[326988876,1715688633721,-500.0,0.00012997,2]
[326988877,1715688633730,-502.60094152,0.00012997,2]
[326988878,1715688633740,-500.0,0.00012997,2]
[326988879,1715688633749,-500.0,0.00012997,2]
[326988880,1715688633758,-503.73387778,0.00012997,2]
[326988881,1715688633768,-500.0,0.00012997,2]
[326988882,1715688633778,-505.4734831,0.00012997,2]
[326988883,1715688633788,-512.96115379,0.00012997,2]
[326988884,1715688633797,-500.0,0.00012997,2]
[326988885,1715688633807,-500.0,0.00012997,2]
[326988886,1715688633816,-505.04279051,0.00012997,2]
[326988887,1715688633826,-500.0,0.00012997,2]
[326988888,1715688633836,-506.8047223,0.00012997,2]
[326988889,1715688633846,-503.15292977,0.00012997,2]
[326988890,1715688633856,-515.1064126,0.00012997,2]
[326988891,1715688633865,-362.17199968,0.00012997,2]
[326988892,1715688633876,-500.0,0.00012997,2]
[326988893,1715688633886,-500.0,0.00012997,2]
[326988894,1715688633895,-500.0,0.00012997,2]
[326988895,1715688633905,-519.77621767,0.00012997,2]
[326988896,1715688633914,-500.0,0.00012997,2]
[326988897,1715688633923,-502.72251244,0.00012997,2]
[326988898,1715688633933,-500.0,0.00012997,2]
[326988899,1715688633942,-502.99783423,0.00012997,2]
[326988900,1715688633951,-500.0,0.00012997,2]
[326988901,1715688633961,-500.0,0.00012997,2]
[326988902,1715688633972,-218.99770509,0.00012997,2]
[326988903,1715688633981,-503.48021749,0.00012997,2]
[326988904,1715688633990,-466.7550044,0.00012997,2]
[326988905,1715688634000,-503.36453913,0.00012997,2]
[326988906,1715688634009,-500.0,0.00012997,2]
[326988907,1715688634019,-500.0,0.00012997,2]
[326988908,1715688634029,-500.0,0.00012997,2]
[326988909,1715688634038,-502.72027278,0.00012997,2]
[326988910,1715688634047,-150.0,0.00012997,2]
[326988911,1715688634057,-500.0,0.00012997,2]
[326988912,1715688634066,-500.0,0.00012997,2]
[326988913,1715688634076,-500.0,0.00012997,2]
[326988914,1715688634086,-500.0,0.00012997,2]
[326988915,1715688634095,-500.0,0.00012997,2]
[326988916,1715688634104,-500.0,0.00012997,2]
[326988917,1715688634114,-517.37168215,0.00012997,2]
[326988918,1715688634124,-511.16906866,0.00012997,2]
[326988919,1715688634135,-514.84030422,0.00012997,2]
[326988920,1715688634146,-500.0,0.00012997,2]
[326988921,1715688634156,-575.22714448,0.00012997,2]
[326988922,1715688634166,-529.29116524,0.00012997,2]
[326988923,1715688634175,-500.0,0.00012997,2]
[326988924,1715688634185,-500.0,0.00012997,2]
[326988925,1715688634195,-506.58331991,0.00012997,2]
[326988926,1715688634204,-503.00458936,0.00012997,2]
[326988927,1715688634213,-500.0,0.00012997,2]
[326988928,1715688634225,-500.0,0.00012997,2]
[326988929,1715688634234,-501.43562326,0.00012997,2]
[326988930,1715688634244,-503.54774929,0.00012997,2]
[326988931,1715688634253,-502.35626523,0.00012997,2]
[326988932,1715688634262,-500.0,0.00012997,2]
[326988933,1715688634272,-519.94852624,0.00012997,2]
[326988934,1715688634281,-500.0,0.00012997,2]
[326988935,1715688634290,-501.97819495,0.00012997,2]
[326988936,1715688634300,-500.0,0.00012997,2]
[326988937,1715688634310,-500.0,0.00012997,2]
[326988938,1715688634319,-507.43925966,0.00012997,2]
[326988939,1715688634328,-500.0,0.00012997,2]
[326988940,1715688634337,-518.80369173,0.00012997,2]
[326988941,1715688634347,-510.64356905,0.00012997,2]
[326988942,1715688634356,-500.0,0.00012997,2]
[326988943,1715688634365,-504.56002659,0.00012997,2]
[326988944,1715688634374,-500.0,0.00012997,2]
[326988945,1715688634383,-520.60678083,0.00012997,2]
[326988946,1715688634392,-515.2056284,0.00012997,2]
[326988947,1715688634401,-500.0,0.00012997,2]
[326988948,1715688634410,-500.0,0.00012997,2]
[326988949,1715688634419,-506.0480758,0.00012997,2]
[326988950,1715688634428,-500.0,0.00012997,2]
[326988951,1715688634437,-620.53535131,0.00012997,2]
[326988952,1715688634447,-500.0,0.00012997,2]
[326988953,1715688634455,-514.82010699,0.00012997,2]
[326988954,1715688634465,-504.20027158,0.00012997,2]
[326988955,1715688634476,-505.45222325,0.00012997,2]
[326988956,1715688634486,-504.76275033,0.00012997,2]
[326988957,1715688634495,-500.0,0.00012997,2]
[326988958,1715688634504,-504.79012507,0.00012997,2]
[326988959,1715688634514,-500.0,0.00012997,2]
[326988960,1715688634523,-502.17412647,0.00012997,2]
[326988961,1715688634533,-500.0,0.00012997,2]
[326988962,1715688634542,-501.80982413,0.00012997,2]
[326988963,1715688634551,-500.0,0.00012997,2]